[Event "Early-Titled-Tuesday-Blitz-May-14-2024"]
[Site "Chess.com"]
[Date "2024.05.14"]
[Round "5"]
[White "ViIIagra"]
[Black "Bilan_Danila"]
[Result "1-0"]
[WhiteElo "2848"]
[BlackElo "2659"]
[TimeControl "180+1"]
[EndTime "8:57:04 PDT"]
[Termination "ViIIagra won on time"]

1. b3 {[%clk 0:02:57.4]} 1... d5 {[%clk 0:02:59.4]} 2. Bb2 {[%clk 0:02:57.7]}
2... Nf6 {[%clk 0:03:00.1]} 3. e3 {[%clk 0:02:57.4]} 3... c6 {[%clk 0:03:00.5]}
4. c4 {[%clk 0:02:57.4]} 4... Bf5 {[%clk 0:02:57.9]} 5. Nf3 {[%clk 0:02:57.2]}
5... e6 {[%clk 0:02:58.3]} 6. Be2 {[%clk 0:02:56.3]} 6... Nbd7 {[%clk
0:02:57.5]} 7. Nh4 {[%clk 0:02:56.1]} 7... Be4 {[%clk 0:02:54.2]} 8. d3 {[%clk
0:02:54.8]} 8... Bg6 {[%clk 0:02:54.2]} 9. Nd2 {[%clk 0:02:53.8]} 9... Nc5
{[%clk 0:02:35.5]} 10. Nxg6 {[%clk 0:02:52.1]} 10... hxg6 {[%clk 0:02:36.4]} 11.
Nf3 {[%clk 0:02:47.9]} 11... Be7 {[%clk 0:02:24.4]} 12. a3 {[%clk 0:02:47.4]}
12... a5 {[%clk 0:02:23.3]} 13. Rb1 {[%clk 0:02:47.5]} 13... O-O {[%clk
0:02:14.6]} 14. Qc2 {[%clk 0:02:47.4]} 14... a4 {[%clk 0:01:39.1]} 15. b4 {[%clk
0:02:45]} 15... Nb3 {[%clk 0:01:32.1]} 16. c5 {[%clk 0:02:45.1]} 16... b6 {[%clk
0:01:25.6]} 17. cxb6 {[%clk 0:02:22.2]} 17... Qxb6 {[%clk 0:01:26.5]} 18. Bxf6
{[%clk 0:02:22.6]} 18... Bxf6 {[%clk 0:01:24.5]} 19. d4 {[%clk 0:02:22.9]} 19...
Rfe8 {[%clk 0:01:12.4]} 20. Qc3 {[%clk 0:02:22.2]} 20... Qc7 {[%clk 0:00:31.6]}
21. O-O {[%clk 0:02:05.4]} 21... e5 {[%clk 0:00:31.2]} 22. dxe5 {[%clk
0:02:06.3]} 22... Bxe5 {[%clk 0:00:30.4]} 23. Nxe5 {[%clk 0:02:06.6]} 23... Qxe5
{[%clk 0:00:28.8]} 24. Qxe5 {[%clk 0:02:05.9]} 24... Rxe5 {[%clk 0:00:28.9]} 25.
Rfd1 {[%clk 0:01:54.1]} 25... d4 {[%clk 0:00:25]} 26. Bf3 {[%clk 0:01:51.8]}
26... dxe3 {[%clk 0:00:20.9]} 27. fxe3 {[%clk 0:01:52.7]} 27... Rc8 {[%clk
0:00:17.4]} 28. Rd3 {[%clk 0:01:42.3]} 28... c5 {[%clk 0:00:16.5]} 29. Rc3
{[%clk 0:01:28.5]} 29... Rce8 {[%clk 0:00:15.6]} 30. bxc5 {[%clk 0:01:13.7]}
30... Nxc5 {[%clk 0:00:08.8]} 31. Rb4 {[%clk 0:01:14.1]} 31... Rxe3 {[%clk
0:00:07.4]} 32. Rxc5 {[%clk 0:01:13]} 32... Rxa3 {[%clk 0:00:07]} 33. Kf2 {[%clk
0:01:12.4]} 33... Ra2+ {[%clk 0:00:06.9]} 34. Kg3 {[%clk 0:01:12.3]} 34... a3
{[%clk 0:00:07.5]} 35. Ra5 {[%clk 0:01:12.6]} 35... f5 {[%clk 0:00:06.1]} 36. h4
{[%clk 0:01:11.8]} 36... Re3 {[%clk 0:00:02.7]} 37. Rba4 {[%clk 0:01:12.1]}
37... Kh7 {[%clk 0:00:01.9]} 38. Kf4 {[%clk 0:01:09.9]} 38... Rb3 {[%clk
0:00:01.8]} 39. Kg5 {[%clk 0:01:09]} 39... Rxf3 {[%clk 0:00:00.6]} 40. gxf3
{[%clk 0:01:07.4]} 1-0

[Event "Early-Titled-Tuesday-Blitz-May-14-2024"]
[Site "Chess.com"]
[Date "2024.05.14"]
[Round "5"]
[White "guillembaches"]
[Black "CarlosjPineror"]
[Result "0-1"]
[WhiteElo "2569"]
[BlackElo "2729"]
[TimeControl "180+1"]
[EndTime "8:57:05 PDT"]
[Termination "CarlosjPineror won on time"]

1. d4 {[%clk 0:03:00.9]} 1... Nf6 {[%clk 0:02:59.7]} 2. Nf3 {[%clk 0:03:01.3]}
2... d6 {[%clk 0:02:59.9]} 3. Bg5 {[%clk 0:03:01.1]} 3... g6 {[%clk 0:02:59.8]}
4. Nbd2 {[%clk 0:02:59.9]} 4... Bg7 {[%clk 0:03:00.1]} 5. c3 {[%clk 0:02:59.7]}
5... O-O {[%clk 0:03:00.6]} 6. e4 {[%clk 0:03:00]} 6... c5 {[%clk 0:03:00.3]} 7.
dxc5 {[%clk 0:02:58.9]} 7... dxc5 {[%clk 0:02:59.7]} 8. Bc4 {[%clk 0:02:58.6]}
8... Nc6 {[%clk 0:02:53.2]} 9. O-O {[%clk 0:02:56.1]} 9... Qc7 {[%clk
0:02:53.1]} 10. Qe2 {[%clk 0:02:56.1]} 10... Nh5 {[%clk 0:02:49.5]} 11. Qe3
{[%clk 0:02:40.4]} 11... b6 {[%clk 0:02:27.8]} 12. a4 {[%clk 0:02:39.8]} 12...
Bb7 {[%clk 0:02:22.3]} 13. Rfd1 {[%clk 0:02:33.8]} 13... Rad8 {[%clk 0:01:58.3]}
14. g3 {[%clk 0:02:18.6]} 14... Rd7 {[%clk 0:01:54.9]} 15. Bh6 {[%clk
0:02:09.3]} 15... Rfd8 {[%clk 0:01:53.2]} 16. Bxg7 {[%clk 0:01:52.6]} 16... Kxg7
{[%clk 0:01:54.1]} 17. Be2 {[%clk 0:01:50]} 17... Ne5 {[%clk 0:01:47.6]} 18.
Nxe5 {[%clk 0:01:32.6]} 18... Qxe5 {[%clk 0:01:48.5]} 19. f3 {[%clk 0:01:16.6]}
19... Nxg3 {[%clk 0:01:44.7]} 20. hxg3 {[%clk 0:01:13.1]} 20... Qxg3+ {[%clk
0:01:45.6]} 21. Kf1 {[%clk 0:01:08.4]} 21... Bc8 {[%clk 0:01:45]} 22. Bb5 {[%clk
0:00:30]} 22... Rd6 {[%clk 0:01:39.5]} 23. Ke2 {[%clk 0:00:20.6]} 23... Qh2+
{[%clk 0:01:33.2]} 24. Ke1 {[%clk 0:00:20.7]} 24... a6 {[%clk 0:00:54.8]} 25.
Bf1 {[%clk 0:00:12.8]} 25... Qg3+ {[%clk 0:00:49.5]} 26. Ke2 {[%clk 0:00:13]}
26... Be6 {[%clk 0:00:43.2]} 27. b3 {[%clk 0:00:11.5]} 27... f5 {[%clk
0:00:40.2]} 28. Ra2 {[%clk 0:00:11]} 28... Bxb3 {[%clk 0:00:34.4]} 0-1

[Event "Early-Titled-Tuesday-Blitz-May-14-2024"]
[Site "Chess.com"]
[Date "2024.05.14"]
[Round "5"]
[White "Dedic8"]
[Black "Msb2"]
[Result "0-1"]
[WhiteElo "2896"]
[BlackElo "3069"]
[TimeControl "180+1"]
[EndTime "8:57:06 PDT"]
[Termination "Msb2 won by resignation"]

1. d4 {[%clk 0:03:00.9]} 1... d5 {[%clk 0:03:00.1]} 2. c4 {[%clk 0:03:01.1]}
2... e6 {[%clk 0:03:00.6]} 3. Nc3 {[%clk 0:03:01.1]} 3... Bb4 {[%clk 0:03:01.3]}
4. Qa4+ {[%clk 0:02:58.1]} 4... Nc6 {[%clk 0:03:01.4]} 5. Nf3 {[%clk 0:02:58.3]}
5... Nf6 {[%clk 0:02:56.4]} 6. e3 {[%clk 0:02:55.7]} 6... O-O {[%clk 0:02:56.6]}
7. Bd2 {[%clk 0:02:55.6]} 7... Qe8 {[%clk 0:02:56.9]} 8. Qc2 {[%clk 0:02:51.6]}
8... dxc4 {[%clk 0:02:56.9]} 9. Bxc4 {[%clk 0:02:51.4]} 9... e5 {[%clk
0:02:57.6]} 10. dxe5 {[%clk 0:02:32.9]} 10... Nxe5 {[%clk 0:02:58.5]} 11. Nxe5
{[%clk 0:02:32.3]} 11... Qxe5 {[%clk 0:02:59.4]} 12. O-O-O {[%clk 0:02:13.4]}
12... c6 {[%clk 0:02:48.2]} 13. h3 {[%clk 0:02:04.6]} 13... Bf5 {[%clk 0:02:38]}
14. Bd3 {[%clk 0:02:03.1]} 14... Bxd3 {[%clk 0:02:35]} 15. Qxd3 {[%clk 0:02:04]}
15... Qe6 {[%clk 0:02:33]} 16. Kb1 {[%clk 0:02:02.6]} 16... Rad8 {[%clk
0:02:30.2]} 17. Qc2 {[%clk 0:02:03]} 17... Rd7 {[%clk 0:02:27.1]} 18. Bc1 {[%clk
0:01:58.3]} 18... Rfd8 {[%clk 0:02:26.6]} 19. Rxd7 {[%clk 0:01:53.1]} 19... Rxd7
{[%clk 0:02:27.5]} 20. f3 {[%clk 0:01:53.2]} 20... Bxc3 {[%clk 0:02:11.1]} 21.
Qxc3 {[%clk 0:01:53.2]} 21... Nd5 {[%clk 0:02:11.8]} 22. Qb3 {[%clk 0:01:39.5]}
22... f5 {[%clk 0:01:43.7]} 23. g4 {[%clk 0:01:20.6]} 23... fxg4 {[%clk
0:01:18.8]} 24. hxg4 {[%clk 0:01:20.5]} 24... Qf7 {[%clk 0:01:18.8]} 25. e4
{[%clk 0:01:15.8]} 25... Nb6 {[%clk 0:01:12.5]} 26. Qc2 {[%clk 0:01:03.9]} 26...
Qxf3 {[%clk 0:01:00.9]} 27. Qh2 {[%clk 0:00:40.6]} 27... Qxe4+ {[%clk
0:01:00.6]} 28. Ka1 {[%clk 0:00:41.3]} 28... Rd8 {[%clk 0:00:57]} 29. g5 {[%clk
0:00:39.4]} 29... Nd5 {[%clk 0:00:52.1]} 30. Rf1 {[%clk 0:00:29.9]} 30... Nb4
{[%clk 0:00:44]} 31. b3 {[%clk 0:00:20.6]} 31... Qd4+ {[%clk 0:00:31.3]} 32. Bb2
{[%clk 0:00:18]} 32... Qd1+ {[%clk 0:00:31.6]} 33. Rxd1 {[%clk 0:00:17.7]} 33...
Rxd1+ {[%clk 0:00:32.5]} 34. Bc1 {[%clk 0:00:18.2]} 34... Rxc1+ {[%clk
0:00:33.2]} 35. Kb2 {[%clk 0:00:18.3]} 35... Rc2+ {[%clk 0:00:33.9]} 0-1

[Event "Early-Titled-Tuesday-Blitz-May-14-2024"]
[Site "Chess.com"]
[Date "2024.05.14"]
[Round "5"]
[White "ChadBiryani"]
[Black "Gareth-Bale11"]
[Result "0-1"]
[WhiteElo "2540"]
[BlackElo "2898"]
[TimeControl "180+1"]
[EndTime "8:57:06 PDT"]
[Termination "Gareth-Bale11 won by resignation"]

1. d4 {[%clk 0:03:00.9]} 1... Nf6 {[%clk 0:02:45]} 2. Bg5 {[%clk 0:02:59.4]}
2... d5 {[%clk 0:02:42.8]} 3. e3 {[%clk 0:02:56.3]} 3... c5 {[%clk 0:02:42.7]}
4. Nf3 {[%clk 0:02:54.8]} 4... Nc6 {[%clk 0:02:36.6]} 5. Nbd2 {[%clk 0:02:35.1]}
5... cxd4 {[%clk 0:02:28.2]} 6. exd4 {[%clk 0:02:34.3]} 6... Qb6 {[%clk
0:02:28.7]} 7. Nb3 {[%clk 0:02:13.8]} 7... Bg4 {[%clk 0:02:27.2]} 8. c3 {[%clk
0:02:11.6]} 8... e6 {[%clk 0:02:25.5]} 9. h3 {[%clk 0:01:56.7]} 9... Bh5 {[%clk
0:02:24]} 10. Bd3 {[%clk 0:01:53.7]} 10... Bd6 {[%clk 0:02:22.8]} 11. O-O {[%clk
0:01:53.3]} 11... Ne4 {[%clk 0:02:15]} 12. Be3 {[%clk 0:01:47.4]} 12... f5
{[%clk 0:02:14.9]} 13. g4 {[%clk 0:01:34.2]} 13... Bg6 {[%clk 0:02:08.4]} 14.
Nh4 {[%clk 0:01:30.7]} 14... Qd8 {[%clk 0:02:00.3]} 15. Ng2 {[%clk 0:01:20.9]}
15... h5 {[%clk 0:01:59.3]} 16. Bxe4 {[%clk 0:01:10.6]} 16... fxe4 {[%clk
0:01:56.6]} 17. g5 {[%clk 0:01:07.6]} 17... h4 {[%clk 0:01:56]} 18. Nf4 {[%clk
0:01:00.6]} 18... Qxg5+ {[%clk 0:01:49]} 19. Kh1 {[%clk 0:00:56.4]} 19... Bxf4
{[%clk 0:01:44.8]} 20. Rg1 {[%clk 0:00:55.5]} 20... Qf5 {[%clk 0:01:44.7]} 21.
Bxf4 {[%clk 0:00:46.2]} 21... Qxh3+ {[%clk 0:01:44.2]} 22. Bh2 {[%clk
0:00:43.8]} 22... Bh5 {[%clk 0:01:45.1]} 23. Qf1 {[%clk 0:00:32.4]} 23... Bf3+
{[%clk 0:01:36.3]} 24. Rg2 {[%clk 0:00:32.8]} 24... g5 {[%clk 0:01:22.3]} 25.
Nd2 {[%clk 0:00:32.6]} 25... Qxg2+ {[%clk 0:01:15.3]} 26. Qxg2 {[%clk
0:00:33.5]} 26... Bxg2+ {[%clk 0:01:16.2]} 27. Kxg2 {[%clk 0:00:34.1]} 27... g4
{[%clk 0:01:17.1]} 28. Bf4 {[%clk 0:00:32.4]} 28... Ne7 {[%clk 0:01:16.5]} 29.
Nb3 {[%clk 0:00:25.1]} 29... b6 {[%clk 0:01:15.2]} 30. c4 {[%clk 0:00:23.9]}
30... Nf5 {[%clk 0:01:12.2]} 31. Be5 {[%clk 0:00:22.7]} 31... Rh7 {[%clk
0:01:11.8]} 32. cxd5 {[%clk 0:00:21.2]} 32... exd5 {[%clk 0:01:09.5]} 33. Rc1
{[%clk 0:00:21.8]} 33... e3 {[%clk 0:01:06.5]} 34. fxe3 {[%clk 0:00:14]} 34...
Nxe3+ {[%clk 0:01:05.6]} 35. Kf2 {[%clk 0:00:14.7]} 35... Nc4 {[%clk 0:01:05.7]}
36. Ke2 {[%clk 0:00:14.6]} 36... Kd7 {[%clk 0:01:05.1]} 37. Rf1 {[%clk
0:00:12.5]} 37... Re8 {[%clk 0:01:03.8]} 38. Kd3 {[%clk 0:00:09.1]} 38... Nxe5+
{[%clk 0:01:03]} 39. dxe5 {[%clk 0:00:10]} 39... h3 {[%clk 0:01:03.6]} 40. Nd4
{[%clk 0:00:08.1]} 40... h2 {[%clk 0:01:03.9]} 41. e6+ {[%clk 0:00:06.8]} 41...
Rxe6 {[%clk 0:01:03.9]} 42. Nxe6 {[%clk 0:00:06.8]} 42... Kxe6 {[%clk
0:01:04.8]} 43. Rh1 {[%clk 0:00:05.4]} 43... g3 {[%clk 0:01:04.7]} 0-1

[Event "Early-Titled-Tuesday-Blitz-May-14-2024"]
[Site "Chess.com"]
[Date "2024.05.14"]
[Round "5"]
[White "Savagelittlemole"]
[Black "edgarhay012"]
[Result "0-1"]
[WhiteElo "2473"]
[BlackElo "2634"]
[TimeControl "180+1"]
[EndTime "8:57:12 PDT"]
[Termination "edgarhay012 won by resignation"]

1. e4 {[%clk 0:03:00.9]} 1... e6 {[%clk 0:02:58.9]} 2. d4 {[%clk 0:03:00.6]}
2... d5 {[%clk 0:02:59.4]} 3. Nd2 {[%clk 0:03:01.1]} 3... Nf6 {[%clk 0:02:54.4]}
4. e5 {[%clk 0:03:01.2]} 4... Nfd7 {[%clk 0:02:55]} 5. Bd3 {[%clk 0:02:59.5]}
5... c5 {[%clk 0:02:55.4]} 6. c3 {[%clk 0:02:59.9]} 6... Nc6 {[%clk 0:02:56.1]}
7. Ne2 {[%clk 0:02:55.1]} 7... cxd4 {[%clk 0:02:53.6]} 8. cxd4 {[%clk 0:02:56]}
8... f6 {[%clk 0:02:54.2]} 9. Nf4 {[%clk 0:02:56.2]} 9... Nxd4 {[%clk
0:02:54.4]} 10. Qh5+ {[%clk 0:02:56.2]} 10... Ke7 {[%clk 0:02:54.8]} 11. exf6+
{[%clk 0:02:55.9]} 11... Nxf6 {[%clk 0:02:54.7]} 12. Ng6+ {[%clk 0:02:56.1]}
12... hxg6 {[%clk 0:02:55.3]} 13. Qxh8 {[%clk 0:02:57]} 13... Kf7 {[%clk
0:02:55.6]} 14. O-O {[%clk 0:02:54.8]} 14... e5 {[%clk 0:02:54.9]} 15. Nb3
{[%clk 0:02:54.5]} 15... Nxb3 {[%clk 0:02:52.7]} 16. axb3 {[%clk 0:02:55.4]}
16... Bf5 {[%clk 0:02:51.6]} 17. Bxf5 {[%clk 0:02:55]} 17... gxf5 {[%clk
0:02:52.5]} 18. Bg5 {[%clk 0:02:55.1]} 18... Qb6 {[%clk 0:02:51.3]} 19. Bxf6
{[%clk 0:02:51.6]} 19... Qxf6 {[%clk 0:02:52.2]} 20. Rad1 {[%clk 0:02:47.2]}
20... Rd8 {[%clk 0:02:50.6]} 21. Rd3 {[%clk 0:02:43.1]} 21... Qh6 {[%clk
0:02:43.4]} 22. Qxh6 {[%clk 0:02:38.7]} 22... gxh6 {[%clk 0:02:44.3]} 23. Rc1
{[%clk 0:02:37.4]} 23... Rd7 {[%clk 0:02:43]} 24. Rcd1 {[%clk 0:02:34.2]} 24...
Ke6 {[%clk 0:02:41.9]} 25. Kf1 {[%clk 0:02:32.4]} 25... Bc5 {[%clk 0:02:35.8]}
26. Rh3 {[%clk 0:02:32.2]} 26... Bf8 {[%clk 0:02:30.4]} 27. Rc1 {[%clk
0:02:30.4]} 27... d4 {[%clk 0:02:28.1]} 28. Rc8 {[%clk 0:02:30.3]} 28... Bg7
{[%clk 0:02:27.1]} 29. Ke2 {[%clk 0:02:24.6]} 29... e4 {[%clk 0:02:25.8]} 30.
Re8+ {[%clk 0:02:21.3]} 30... Kf7 {[%clk 0:02:24.1]} 31. Ra8 {[%clk 0:02:14.8]}
31... a6 {[%clk 0:02:20.2]} 32. g4 {[%clk 0:02:09.3]} 32... fxg4 {[%clk
0:02:15.3]} 33. Rh4 {[%clk 0:02:09]} 33... d3+ {[%clk 0:02:13.9]} 34. Kd2 {[%clk
0:01:56.2]} 34... Bf6 {[%clk 0:02:07.5]} 35. Rxg4 {[%clk 0:01:55.5]} 35... Bg5+
{[%clk 0:02:07.9]} 36. Rxg5 {[%clk 0:01:29.2]} 36... hxg5 {[%clk 0:02:08.8]} 37.
Rc8 {[%clk 0:01:29.3]} 37... Ke6 {[%clk 0:02:04.6]} 38. Rc5 {[%clk 0:01:22.9]}
38... Rd5 {[%clk 0:02:00.2]} 39. Rc4 {[%clk 0:01:09.4]} 39... Kf5 {[%clk
0:01:56.5]} 40. Rc7 {[%clk 0:01:07.9]} 40... Rb5 {[%clk 0:01:53.5]} 41. Kc3
{[%clk 0:01:07.7]} 41... Kg4 {[%clk 0:01:47.5]} 42. Rf7 {[%clk 0:00:57.5]} 42...
Rf5 {[%clk 0:01:39.9]} 43. h3+ {[%clk 0:00:48.8]} 43... Kf4 {[%clk 0:01:38.9]}
44. Rxb7 {[%clk 0:00:40.8]} 44... Kf3 {[%clk 0:01:31.2]} 45. Re7 {[%clk
0:00:24.9]} 45... Rc5+ {[%clk 0:01:27.2]} 46. Kd2 {[%clk 0:00:13.5]} 46... Rc2+
{[%clk 0:01:26.3]} 47. Ke1 {[%clk 0:00:08.8]} 47... Re2+ {[%clk 0:01:25.5]} 48.
Kd1 {[%clk 0:00:08]} 48... Rxf2 {[%clk 0:01:21.5]} 49. Rg7 {[%clk 0:00:04.4]}
49... Ke3 {[%clk 0:01:17.2]} 50. Ke1 {[%clk 0:00:02.3]} 50... d2+ {[%clk
0:01:17.3]} 0-1

[Event "Early-Titled-Tuesday-Blitz-May-14-2024"]
[Site "Chess.com"]
[Date "2024.05.14"]
[Round "5"]
[White "Kors67"]
[Black "JJDAREK"]
[Result "1-0"]
[WhiteElo "2267"]
[BlackElo "2378"]
[TimeControl "180+1"]
[EndTime "8:57:16 PDT"]
[Termination "Kors67 won on time"]

1. e4 {[%clk 0:03:00.9]} 1... d6 {[%clk 0:02:58.9]} 2. d4 {[%clk 0:03:00.2]}
2... Nf6 {[%clk 0:02:59.3]} 3. Nc3 {[%clk 0:03:00.4]} 3... g6 {[%clk 0:02:59.8]}
4. h4 {[%clk 0:02:52.9]} 4... Bg7 {[%clk 0:02:57.8]} 5. h5 {[%clk 0:02:41.8]}
5... Nxh5 {[%clk 0:02:57.3]} 6. Rxh5 {[%clk 0:02:41.8]} 6... gxh5 {[%clk
0:02:58.2]} 7. Qxh5 {[%clk 0:02:41.7]} 7... c5 {[%clk 0:02:38.2]} 8. Bc4 {[%clk
0:02:19.3]} 8... e6 {[%clk 0:02:37.4]} 9. dxc5 {[%clk 0:02:05.1]} 9... dxc5
{[%clk 0:02:33.8]} 10. Qxc5 {[%clk 0:01:40.9]} 10... Nc6 {[%clk 0:02:28.7]} 11.
Be3 {[%clk 0:01:37.2]} 11... Bxc3+ {[%clk 0:02:20.9]} 12. bxc3 {[%clk
0:01:35.1]} 12... Qa5 {[%clk 0:02:18.8]} 13. Bb5 {[%clk 0:01:25.4]} 13... Qc7
{[%clk 0:01:22.6]} 14. Bf4 {[%clk 0:01:18.1]} 14... Qb6 {[%clk 0:01:19.9]} 15.
Qg5 {[%clk 0:01:07.8]} 15... Bd7 {[%clk 0:01:10.3]} 16. Bd6 {[%clk 0:00:58.6]}
16... Qa5 {[%clk 0:00:17]} 17. Ne2 {[%clk 0:00:53]} 17... a6 {[%clk 0:00:15.6]}
18. Qf6 {[%clk 0:00:53.2]} 18... Rg8 {[%clk 0:00:04.5]} 19. Bxc6 {[%clk
0:00:52.7]} 19... Qg5 {[%clk 0:00:03]} 20. Bxd7+ {[%clk 0:00:39.4]} 20... Kxd7
{[%clk 0:00:03]} 21. Qxf7+ {[%clk 0:00:40]} 21... Kxd6 {[%clk 0:00:03.3]} 22.
Qxb7 {[%clk 0:00:21.8]} 22... Rab8 {[%clk 0:00:01.5]} 23. Rd1+ {[%clk
0:00:21.1]} 23... Ke5 {[%clk 0:00:01.2]} 24. f4+ {[%clk 0:00:16.4]} 1-0

[Event "Early-Titled-Tuesday-Blitz-May-14-2024"]
[Site "Chess.com"]
[Date "2024.05.14"]
[Round "5"]
[White "Evan_Attaker"]
[Black "dropstoneDP"]
[Result "0-1"]
[WhiteElo "2641"]
[BlackElo "2979"]
[TimeControl "180+1"]
[EndTime "8:57:17 PDT"]
[Termination "dropstoneDP won by resignation"]

1. Nf3 {[%clk 0:02:06.5]} 1... Nf6 {[%clk 0:02:59.2]} 2. c4 {[%clk 0:02:05.6]}
2... c5 {[%clk 0:02:59.7]} 3. b3 {[%clk 0:02:03.8]} 3... d5 {[%clk 0:02:59.3]}
4. cxd5 {[%clk 0:02:03.6]} 4... Nxd5 {[%clk 0:03:00.2]} 5. Bb2 {[%clk
0:02:04.2]} 5... Nc6 {[%clk 0:03:00.4]} 6. e3 {[%clk 0:02:04.5]} 6... Bf5 {[%clk
0:02:55.5]} 7. a3 {[%clk 0:01:57.4]} 7... Qd7 {[%clk 0:02:35]} 8. d3 {[%clk
0:01:55.8]} 8... Nc7 {[%clk 0:02:34.5]} 9. Be2 {[%clk 0:01:46.8]} 9... Rd8
{[%clk 0:02:31.8]} 10. d4 {[%clk 0:01:34.7]} 10... cxd4 {[%clk 0:02:31.6]} 11.
Nxd4 {[%clk 0:01:33.6]} 11... Nxd4 {[%clk 0:02:31]} 12. Qxd4 {[%clk 0:01:25.4]}
12... Qc6 {[%clk 0:01:59.7]} 13. Qf4 {[%clk 0:01:23.5]} 13... Qc2 {[%clk
0:01:48.9]} 14. O-O {[%clk 0:01:01]} 14... Qxe2 {[%clk 0:01:27]} 15. Be5 {[%clk
0:00:50.2]} 15... Rd1 {[%clk 0:01:14.1]} 16. Nd2 {[%clk 0:00:44.9]} 16... Rxa1
{[%clk 0:01:04]} 17. Rxa1 {[%clk 0:00:30]} 17... Qxd2 {[%clk 0:01:03.1]} 18.
Bxc7 {[%clk 0:00:22.1]} 18... e6 {[%clk 0:00:40.2]} 19. Qa4+ {[%clk 0:00:09.9]}
19... Qd7 {[%clk 0:00:40.4]} 20. Qxa7 {[%clk 0:00:08.2]} 20... Qxc7 {[%clk
0:00:40]} 21. Qa8+ {[%clk 0:00:08.1]} 21... Qd8 {[%clk 0:00:40.2]} 22. Qa4+
{[%clk 0:00:07.3]} 22... Qd7 {[%clk 0:00:37.6]} 23. Qa8+ {[%clk 0:00:07.4]}
23... Ke7 {[%clk 0:00:36.2]} 24. a4 {[%clk 0:00:06.2]} 24... g6 {[%clk
0:00:34.7]} 25. Rc1 {[%clk 0:00:02.8]} 25... Bg7 {[%clk 0:00:34.2]} 26. Qa5
{[%clk 0:00:01.9]} 26... Rc8 {[%clk 0:00:34.6]} 27. Qb4+ {[%clk 0:00:01.6]}
27... Ke8 {[%clk 0:00:33.5]} 28. Re1 {[%clk 0:00:01.4]} 28... Bc3 {[%clk
0:00:32.9]} 0-1

[Event "Early-Titled-Tuesday-Blitz-May-14-2024"]
[Site "Chess.com"]
[Date "2024.05.14"]
[Round "5"]
[White "english_player_89"]
[Black "Juicy_Fork"]
[Result "1-0"]
[WhiteElo "2616"]
[BlackElo "2455"]
[TimeControl "180+1"]
[EndTime "8:57:18 PDT"]
[Termination "english_player_89 won by checkmate"]

1. e4 {[%clk 0:03:00.9]} 1... e5 {[%clk 0:02:57.6]} 2. Nf3 {[%clk 0:03:01.2]}
2... Nc6 {[%clk 0:02:56]} 3. Bc4 {[%clk 0:03:01.5]} 3... Nf6 {[%clk 0:02:54.7]}
4. d3 {[%clk 0:03:01.7]} 4... Bc5 {[%clk 0:02:54.8]} 5. Bb3 {[%clk 0:03:02.3]}
5... O-O {[%clk 0:02:53.2]} 6. Nbd2 {[%clk 0:03:02.5]} 6... d6 {[%clk
0:02:53.4]} 7. c3 {[%clk 0:03:02.8]} 7... a5 {[%clk 0:02:52.6]} 8. h3 {[%clk
0:03:02.6]} 8... h6 {[%clk 0:02:51]} 9. g4 {[%clk 0:03:01.6]} 9... d5 {[%clk
0:02:27.4]} 10. g5 {[%clk 0:02:57.1]} 10... hxg5 {[%clk 0:02:21.4]} 11. Nxg5
{[%clk 0:02:58]} 11... Ng4 {[%clk 0:02:01.2]} 12. hxg4 {[%clk 0:02:44.6]} 12...
Qxg5 {[%clk 0:01:59.5]} 13. exd5 {[%clk 0:02:41.2]} 13... Bxg4 {[%clk
0:01:57.6]} 14. Ne4 {[%clk 0:02:29.6]} 14... Bxd1 {[%clk 0:00:57.9]} 15. Bxg5
{[%clk 0:02:25.4]} 15... Bf3 {[%clk 0:00:45.8]} 16. Rg1 {[%clk 0:02:03.2]} 16...
Bxe4 {[%clk 0:00:37.6]} 17. dxe4 {[%clk 0:02:02.7]} 17... Ne7 {[%clk 0:00:34.3]}
18. Rg2 {[%clk 0:01:33.2]} 18... a4 {[%clk 0:00:29.5]} 19. Bc2 {[%clk
0:01:28.7]} 19... Ng6 {[%clk 0:00:26.7]} 20. O-O-O {[%clk 0:01:28.1]} 20... f6
{[%clk 0:00:20]} 21. Bh6 {[%clk 0:01:20.7]} 21... Kf7 {[%clk 0:00:16.5]} 22.
Bxg7 {[%clk 0:01:18.6]} 22... Rg8 {[%clk 0:00:11.3]} 23. Bh6 {[%clk 0:01:16]}
23... Nh4 {[%clk 0:00:11.6]} 24. Rxg8 {[%clk 0:01:14.4]} 24... Rxg8 {[%clk
0:00:12.5]} 25. Bxa4 {[%clk 0:01:06.9]} 25... Bxf2 {[%clk 0:00:12.4]} 26. Bd7
{[%clk 0:01:01.9]} 26... Ke7 {[%clk 0:00:11.7]} 27. Be6 {[%clk 0:01:01.3]} 27...
Rg6 {[%clk 0:00:10.9]} 28. Bd2 {[%clk 0:00:54.8]} 28... Nf3 {[%clk 0:00:10.2]}
29. Rh1 {[%clk 0:00:44.7]} 29... Kd6 {[%clk 0:00:09.9]} 30. Rh7 {[%clk
0:00:38.9]} 30... Rg1+ {[%clk 0:00:09]} 31. Kc2 {[%clk 0:00:38.2]} 31... Rg2
{[%clk 0:00:09.2]} 32. b4 {[%clk 0:00:33.5]} 32... c6 {[%clk 0:00:02.2]} 33.
Rd7# {[%clk 0:00:31.9]} 1-0